[Event "British Championship 2024"]
[Site "Hull"]
[Date "2024.07.31"]
[Round "2.10"]
[White "Wadsworth, Matthew J"]
[Black "Pein, Malcolm"]
[Result "1-0"]
[Annotator "TA"]
[ECO "A59"]
[WhiteElo "2467"]
[BlackElo "2274"]
[PlyCount "77"]
[EventDate "2024.07.31"]
[EventCountry "GBR"]
[SourceTitle "playchess.com"]
[Source "ChessBase"]
[SourceQuality "1"]
[TimeControl "40/5400+30:1800+30"]

{[%evp 24,77,77,77,95,104,97,83,124,131,122,122,122,119,135,129,133,133,147,120,118,111,228,222,216,224,449,490,468,462,831,753,844,815,1251,1219,2075,1921,3337,3299,12798,12797,12791,9111,6705,10060,5489,3818,5875,7129,2975,3166,12825,10676,29939,10032]} 1. d4 {[%emt 0:00:04]} Nf6 {[%emt 0:01:00]} 2. c4 {[%emt 0:00:09]} c5 {[%emt 0:02:04]} 3. d5 {[%emt 0:00:24]} b5 {[%emt 0:01:07]} 4. cxb5 {[%emt 0:00:09]} a6 {[%emt 0:00:05]} 5. bxa6 {[%emt 0:01:14]} g6 {[%emt 0:00:20]} 6. Nc3 {[%emt 0:00:57]} Bxa6 {[%emt 0:00:08]} 7. e4 {[%emt 0:00:40]} Bxf1 {[%emt 0:00:07]} 8. Kxf1 {[%emt 0:00:07]} d6 {[%emt 0:00:12]} 9. Nf3 {[%emt 0:00:37]} Bg7 {[%emt 0:00:52]} 10. g3 {[%emt 0:00:18]} O-O {[%emt 0:00:08]} 11. Kg2 {[%emt 0:00:19]} Nbd7 {[%emt 0:00:10]} 12. a4 {[%emt 0:02:59]} Qb6 {[%emt 0:18:19]} 13. Qc2 {[%emt 0:08:54]} Rfb8 {[%emt 0:05:50]} 14. Nb5 {[%emt 0:02:55]} Ne8 {[%emt 0:03:13]} 15. Nd2 {[%emt 0:07:10]} Nc7 {[%emt 0:06:21] White is better.} 16. Nc4 {[%emt 0:00:58]} Qb7 {[%emt 0:00:06]} 17. Nxc7 {[%emt 0:01:08]} Qxc7 {[%emt 0:00:01]} 18. a5 {[%emt 0:01:06] Repels Nb6} Qb7 {[%emt 0:10:53]} 19. Ra3 {[%emt 0:07:14] Against Qb3} Ra7 {[%emt 0:09:47]} 20. Bd2 {[%emt 0:17:13][%cal Bc1d2,Bd2g5,Bg5e7,Be7d6][%mdl 32]} f5 {[%emt 0:14:07]} 21. Bg5 {[%emt 0:09:07]} (21. exf5 Qxd5+ 22. f3 Qxf5 23. Qxf5 gxf5 $17) 21... Ne5 {[%emt 0:05:26]} 22. Nb6 {[%emt 0:02:56]} (22. exf5 $2 Qxd5+ 23. Kh3 Qxc4 $19 (23... Qxh1 $2 24. Nxe5 Bxe5 25. fxg6 $19) (23... Nxc4 $2 24. Ra2 $19)) 22... Nd7 {[%emt 0:00:33]} (22... e6 $16 {was worth a try.}) 23. Bxe7 $18 {[%emt 0:13:22]} (23. exf5 Nxb6 24. axb6 Rxa3 (24... Qxd5+ 25. Rf3 $15) 25. bxa3 Qxd5+ 26. f3 Rxb6 $15 (26... gxf5 $2 27. Rb1 $18)) 23... Nxb6 {[%emt 0:02:13]} 24. Bxd6 {[%emt 0:00:07]} Re8 {[%emt 0:06:50]} (24... Nd7) 25. axb6 {[%emt 0:03:19]} Rxa3 {[%emt 0:00:08]} 26. bxa3 {[%emt 0:00:04]} fxe4 {[%emt 0:02:26]} (26... Qxb6 $142 27. Bxc5 (27. Qxc5 Qxc5 28. Bxc5 fxe4 $18) 27... Qb7) 27. Qxc5 {[%emt 0:01:29]} Qf7 {[%emt 0:01:38]} 28. Re1 {[%emt 0:11:01]} ({Not} 28. Bf4 g5 $16) 28... Qf3+ {[%emt 0:01:15]} 29. Kg1 {[%emt 0:00:01]} e3 {[%emt 0:02:39]} 30. fxe3 {[%emt 0:00:30]} Bf8 {[%emt 0:04:51]} 31. b7 {[%emt 0:01:33] [#] White threatens Qc8 and mate.} Bxd6 {[%emt 0:00:32]} 32. Qxd6 {[%emt 0:00:12][%mdl 4096] Endgame. KQR-KQR} Rf8 {[%emt 0:00:06]} 33. Qe6+ {[%emt 0:00:19]} (33. b8=B $2 Qf2+ 34. Kh1 Qxe1+ 35. Kg2 Qf1#) 33... Kg7 {[%emt 0:00:08]} 34. Qe5+ {[%emt 0:00:20]} Kh6 {[%emt 0:00:11]} 35. Qb2 {[%emt 0:00:10]} (35. b8=B $2 {is a self mate.} Qf2+ 36. Kh1 Qxe1+ 37. Kg2 Qf1#) 35... Rb8 {[%emt 0:00:53]} 36. e4 {[%emt 0:00:31] [#] White wants to mate with Qc1+.} Qf7 {[%emt 0:00:56]} 37. Rb1 {[%emt 0:01:14]} Qf3 {[%emt 0:02:09]} 38. Qd2+ {[%emt 0:02:58]} g5 {[%emt 0:00:12]} 39. Qd4 {[%emt 0:00:49] Weighted Error Value: White=0.05 (flawless) /Black=0.56.  Mistake:       	---       	Black=3      Inaccurate:     	---       	Black=1      OK:         	White=8     	Black=5      Best:        	White=2     	---} 1-0

[Event "British Championship 2024"]
[Site "Hull"]
[Date "2024.07.31"]
[Round "2.11"]
[White "Kalavannan, Koby"]
[Black "Williams, Simon K"]
[Result "1/2-1/2"]
[Annotator "TA"]
[ECO "C01"]
[WhiteElo "2265"]
[BlackElo "2450"]
[PlyCount "35"]
[EventDate "2024.07.31"]
[EventCountry "GBR"]
[SourceTitle "playchess.com"]
[Source "ChessBase"]
[SourceQuality "1"]
[TimeControl "40/5400+30:1800+30"]

{[%evp 13,35,18,26,14,38,0,22,24,30,29,31,33,35,37,36,29,45,36,27,13,18,11,12,0]} 1. d4 {[%emt 0:07:49]} e6 {[%emt 0:00:09]} 2. e4 {[%emt 0:00:20]} d5 {[%emt 0:00:09]} 3. exd5 {[%emt 0:00:19]} exd5 {[%emt 0:00:06]} 4. Nf3 {[%emt 0:00:15]} Nf6 {[%emt 0:04:21]} 5. Bd3 {[%emt 0:00:43]} Bg4 {[%emt 0:07:39]} 6. O-O {[%emt 0:00:25]} Be7 {[%emt 0:00:15]} 7. Re1 {[%emt 0:00:36]} O-O {[%emt 0:01:54]} 8. h3 {[%emt 0:01:24]} Bh5 {[%emt 0:00:20]} 9. Bf4 {[%emt 0:00:20]} Nc6 {[%emt 0:27:24]} 10. c3 {[%emt 0:00:54]} Bd6 {[%emt 0:00:06]} 11. Bxd6 {[%emt 0:00:56]} Qxd6 {[%emt 0:00:08]} 12. Nbd2 {[%emt 0:00:21]} Rfe8 {[%emt 0:04:31]} 13. Qb3 {[%emt 0:01:28]} b6 {[%emt 0:02:24]} 14. Bb5 {[%emt 0:05:16]} Rxe1+ {[%emt 0:19:34]} 15. Rxe1 {[%emt 0:00:06]} Bxf3 {[%emt 0:00:43]} 16. Bxc6 {[%emt 0:05:14]} Qxc6 {[%emt 0:00:11]} 17. Nxf3 {[%emt 0:00:02]} Re8 {[%emt 0:03:54]} 18. Re5 {[%emt 0:05:21] Weighted Error Value: White=0.08 (flawless) /Black=0.03 (flawless) .  Inaccurate:     	White=1     	---        OK:         	White=5     	Black=4} 1/2-1/2

[Event "British Championship 2024"]
[Site "Hull"]
[Date "2024.07.31"]
[Round "2.12"]
[White "Van Zyl-Rudd, Jack"]
[Black "Willow, Jonah B"]
[Result "1-0"]
[Annotator "TA"]
[ECO "D35"]
[WhiteElo "2292"]
[BlackElo "2422"]
[PlyCount "95"]
[EventDate "2024.07.31"]
[EventCountry "GBR"]
[SourceTitle "playchess.com"]
[Source "ChessBase"]
[SourceQuality "1"]
[TimeControl "40/5400+30:1800+30"]

{[%evp 22,95,0,0,0,0,5,-17,-17,-27,-27,-27,-33,-31,-35,-50,0,-6,-6,-20,8,5,3,0,0,0,0,0,0,0,0,0,21,0,54,40,44,47,81,49,84,0,0,0,0,-41,-51,-47,-44,-46,-33,-35,0,0,0,-48,-18,-17,0,0,6,9,218,234,223,204,848,808,1318,466,453,466,462,468,2284,1938]} 1. d4 {[%emt 0:00:01]} Nf6 {[%emt 0:01:13]} 2. c4 {[%emt 0:00:07]} e6 {[%emt 0:00:09]} 3. Nf3 {[%emt 0:00:06]} d5 {[%emt 0:00:43]} 4. cxd5 {[%emt 0:00:06]} exd5 {[%emt 0:00:04]} 5. Nc3 {[%emt 0:00:06]} c6 {[%emt 0:00:51]} 6. Bg5 {[%emt 0:00:07]} h6 {[%emt 0:00:07]} 7. Bh4 {[%emt 0:00:19]} Bf5 {[%emt 0:01:37]} 8. e3 {[%emt 0:01:02]} Nbd7 {[%emt 0:00:21]} 9. Bd3 {[%emt 0:00:11]} Bxd3 {[%emt 0:00:18]} 10. Qxd3 {[%emt 0:00:07]} Bd6 {[%emt 0:01:20]} 11. O-O {[%emt 0:00:47]} O-O {[%emt 0:00:07]} 12. Rab1 {[%emt 0:00:07]} Re8 {[%emt 0:03:08]} 13. b4 {[%emt 0:00:51]} a6 {[%emt 0:00:03]} 14. Na4 {[%emt 0:01:00]} Qc7 {[%emt 0:07:59] The position is equal.} 15. Nc5 {[%emt 0:00:52]} Ne4 {[%emt 0:01:20]} 16. Bg3 {[%emt 0:01:34]} Bxg3 {[%emt 0:01:34]} 17. hxg3 {[%emt 0:01:18]} h5 {[%emt 0:01:28]} 18. Rfc1 {[%emt 0:01:15]} Nf8 {[%emt 0:09:37]} (18... g6 $15) 19. a4 {[%emt 0:01:13]} Nd6 {[%emt 0:06:58][%cal Be4d6,Bd6c4,Bc4d2][%mdl 32]} 20. Ne5 {[%emt 0:01:48][%cal Ob4b5]} Qe7 {[%emt 0:04:28] [#]} 21. b5 $1 {[%emt 0:04:43]} cxb5 {[%emt 0:11:24]} 22. Qb3 {[%emt 0:02:00]} b6 {[%emt 0:10:41]} 23. Ncd3 {[%emt 0:00:13]} Nc4 $1 {[%emt 0:00:21]} 24. axb5 {[%emt 0:02:36]} Nd2 {[%emt 0:01:43][%csl LRb1,LRb3]} 25. Qxd5 {[%emt 0:00:07]} Nxb1 {[%emt 0:00:05]} 26. Rxb1 {[%emt 0:00:06]} a5 {[%emt 0:04:09][%cal Ba6a5,Ba5a4,Ba4a3][%mdl 32]} 27. Nc6 {[%emt 0:02:43]} Qd7 {[%emt 0:06:59]} (27... Qe4 $11 28. Qxe4 Rxe4) 28. Nf4 {[%emt 0:00:51] A dynamic duo of knights.} a4 $1 {[%emt 0:03:59]} 29. Ra1 {[%emt 0:00:56] Strongly threatening Qf3.} a3 $1 {[%emt 0:05:35][%cal Oa3a2]} 30. Qxh5 {[%emt 0:00:38] Nd5 is the strong threat. White has more active pieces.} a2 {[%emt 0:08:16]} 31. Qe2 {[%emt 0:00:56]} ({White should play} 31. Ne5 $16 Qb7 (31... Qxb5 32. Qxf7+ Kh8 33. Nh5 $16) 32. Qe2) 31... Qf5 $11 {[%emt 0:01:04]} 32. Qb2 {[%emt 0:00:35] Repels Qb1+} Nd7 {[%emt 0:01:37] Prevents Ne5.} (32... g5 $2 33. g4 Qe4 34. Nh5 $18) 33. d5 {[%emt 0:01:32]} Nf6 {[%emt 0:05:02]} 34. Rxa2 {[%emt 0:00:19]} Rxa2 {[%emt 0:00:23]} (34... Nxd5 $2 35. Rxa8 Rxa8 36. Nxd5 $18) 35. Qxa2 {[%emt 0:00:05]} g5 {[%emt 0:00:35]} 36. Nd4 {[%emt 0:01:50]} Qe5 {[%emt 0:01:13][%mdl 1024] Black has compensation.} 37. Nf3 {[%emt 0:01:42]} Qf5 {[%emt 0:00:01]} (37... Qc3 $11 38. Nxg5 (38. Ne2 Qd3 $17) 38... Qe1+ 39. Kh2 Ng4+ 40. Kh3 Nxf2+ 41. Kh4 Qh1+ (41... Rxe3 $2 {loses.} 42. d6 $18) 42. Ngh3 Nxh3 43. gxh3 Qf3 (43... Rxe3 $2 44. Qa8+ Kg7 45. Nh5+ Kg6 46. Qg8+ Kf5 47. Qxf7+ Ke5 48. Qg7+ Ke4 49. d6 $18)) 38. Nd4 $15 {[%emt 0:00:10]} Qc8 {[%emt 0:01:50]} 39. Nfe2 {[%emt 0:00:41]} Qc5 {[%emt 0:00:26]} 40. Qa7 {[%emt 0:03:52]} ({Don't play} 40. Nf5 Qxd5 41. Qb1 Re5 $17) 40... Qb4 {[%emt 0:01:03]} 41. Qa1 {[%emt 0:32:32] Prevents Qe1+. Threatens to win with Nf5.} Kg7 $2 {[%emt 0:07:16] [#] A mistake that costs the game.} (41... Qd6 $11) 42. g4 $1 $18 {[%emt 0:00:00]} Kg6 {[%emt 0:01:59]} 43. d6 {[%emt 0:00:00] Black must now prevent Ng3.} Re4 $2 {[%emt 0:13:20]} (43... Nxg4 44. d7 Rd8) 44. Ng3 {[%emt 0:00:00] White is clearly winning.} Rxg4 {[%emt 0:00:33]} 45. Ndf5 {[%emt 0:00:00]} (45. Nc6 $142 {Ne7+ would kill now.} Qxd6 46. Qb1+ Ne4 47. Nxe4 Rxe4 48. Qxe4+ Kf6 49. Qh7 (49. Qf3+ Kg7 $18)) 45... Rxg3 {[%emt 0:03:57]} 46. Nxg3 {[%emt 0:00:00]} Qxb5 {[%emt 0:00:14]} 47. Qd1 {[%emt 0:00:00] Prevents Qd3.} Kg7 {[%emt 0:02:16]} (47... Kh7 $142 48. Nh5 Nd7) 48. Nh5+ {[%emt 0:00:00] Weighted Error Value: White=0.23 (precise) /Black=0.19 (very precise) .  Loses game:     	---       	Black=1      Mistake:       	White=1     	Black=5      Inaccurate:     	White=2     	Black=5      OK:         	White=18    	Black=13     Best:        	White=3     	Black=1      Strong:       	---       	Black=3} 1-0

[Event "British Championship 2024"]
[Site "Hull"]
[Date "2024.07.31"]
[Round "2.13"]
[White "Shearsby, Jude"]
[Black "Motwani, Paul"]
[Result "1/2-1/2"]
[Annotator "RC"]
[ECO "C55"]
[WhiteElo "2092"]
[BlackElo "2414"]
[PlyCount "49"]
[EventDate "2024.07.31"]
[EventCountry "GBR"]
[SourceTitle "playchess.com"]
[Source "ChessBase"]
[SourceQuality "1"]
[TimeControl "40/5400+30:1800+30"]

1. e4 {[%emt 0:02:21]} e5 {[%emt 0:00:07]} 2. Nf3 {[%emt 0:00:05]} Nc6 {[%emt 0:00:11]} 3. Bc4 {[%emt 0:00:06]} Nf6 {[%emt 0:01:11]} 4. d3 {[%emt 0:12:52]} Be7 {[%emt 0:02:29]} 5. c3 {[%emt 0:01:31]} O-O {[%emt 0:02:00]} 6. O-O {[%emt 0:00:31]} d6 {[%emt 0:01:54]} 7. h3 {[%emt 0:01:21]} Na5 {[%emt 0:10:52]} 8. Bb5 {[%emt 0:01:22]} a6 {[%emt 0:00:21]} 9. Ba4 {[%emt 0:00:07]} b5 {[%emt 0:00:18]} 10. Bc2 {[%emt 0:00:06]} c5 {[%emt 0:00:12]} 11. d4 {[%emt 0:02:43]} Qc7 {[%emt 0:02:57]} 12. Nbd2 {[%emt 0:00:17]} cxd4 {[%emt 0:03:38]} 13. cxd4 {[%emt 0:00:39]} Bd7 {[%emt 0:01:04]} 14. Re1 {[%emt 0:09:05]} Rfe8 {[%emt 0:21:27]} 15. Nf1 {[%emt 0:04:49]} Rac8 {[%emt 0:02:25]} 16. Ne3 {[%emt 0:02:12]} Nc6 {[%emt 0:03:13]} 17. Bb3 {[%emt 0:02:00]} exd4 {[%emt 0:13:51]} 18. Nxd4 {[%emt 0:00:22]} Nxd4 {[%emt 0:04:52]} 19. Qxd4 {[%emt 0:00:08]} Be6 {[%emt 0:02:39]} 20. Nf5 {[%emt 0:06:45]} Bxf5 {[%emt 0:02:57]} 21. exf5 {[%emt 0:00:09]} d5 {[%emt 0:00:24]} 22. Be3 {[%emt 0:02:52]} Bc5 {[%emt 0:06:31]} 23. Qxc5 {[%emt 0:00:55]} Qxc5 {[%emt 0:00:09]} 24. Bxc5 {[%emt 0:00:05]} Rxc5 {[%emt 0:00:46]} 25. Rxe8+ {[%emt 0:00:41]} 1/2-1/2

[Event "British Championship 2024"]
[Site "Hull"]
[Date "2024.07.31"]
[Round "2.14"]
[White "Han, Yichen"]
[Black "Toma, Katarzyna"]
[Result "1/2-1/2"]
[Annotator "TA"]
[ECO "A27"]
[WhiteElo "2414"]
[BlackElo "2220"]
[PlyCount "100"]
[EventDate "2024.07.31"]
[EventCountry "GBR"]
[SourceTitle "playchess.com"]
[Source "ChessBase"]
[SourceQuality "1"]
[TimeControl "40/5400+30:1800+30"]

{[%evp 12,100,49,47,43,48,69,54,71,52,70,72,79,61,70,65,64,54,92,91,112,117,121,120,191,197,194,204,177,171,158,141,321,154,168,161,297,264,277,225,324,302,332,321,349,342,338,345,327,250,232,244,233,177,203,189,169,152,150,167,178,186,180,54,184,195,175,58,62,0,0,-12,0,-28,8,-34,-34,-121,-110,-248,-29,-29,-29,-29,-29,-29,0,0,0,-28,0]} 1. c4 {[%emt 0:00:26]} e5 {[%emt 0:00:36]} 2. Nc3 {[%emt 0:00:20]} Nc6 {[%emt 0:00:15]} 3. Nf3 {[%emt 0:00:14]} f5 {[%emt 0:04:23]} 4. g3 {[%emt 0:01:36]} Nf6 {[%emt 0:00:29]} 5. d4 {[%emt 0:00:46]} e4 {[%emt 0:03:15]} 6. Nh4 {[%emt 0:02:06] A27: English Opening: Three Knights Variation.} d6 {[%emt 0:06:06]} 7. Ng2 {[%emt 0:00:40]} g6 {[%emt 0:01:54]} 8. Bg5 {[%emt 0:01:36]} Bg7 {[%emt 0:01:40]} 9. e3 {[%emt 0:01:41]} Ne7 {[%emt 0:06:04]} 10. Nf4 {[%emt 0:01:31]} h6 {[%emt 0:03:15]} 11. Bxf6 {[%emt 0:01:58]} Bxf6 {[%emt 0:00:03]} 12. Ncd5 $146 {[%emt 0:06:01]} ({Predecessor:} 12. h4 O-O 13. Ncd5 Nxd5 14. cxd5 Qe8 15. Qc2 Bd8 16. Bc4 Kg7 17. O-O-O c6 18. Kb1 {1-0 Cabarkapa,N (2453)-Pezelj,N (2465) SRB-chT Premier 2020 (3.5)}) 12... Nxd5 {[%emt 0:04:17]} 13. cxd5 {[%emt 0:00:13]} (13. Nxd5 c6 14. Nxf6+ Qxf6 $11) 13... Kf7 {[%emt 0:00:07]} 14. Rc1 {[%emt 0:05:35]} Re8 {[%emt 0:17:03]} 15. h4 {[%emt 0:02:16]} Bd7 {[%emt 0:01:47]} 16. Qb3 {[%emt 0:01:23]} Rb8 {[%emt 0:01:37]} 17. Bb5 {[%emt 0:04:53]} Re7 {[%emt 0:03:21]} (17... Bxb5 $16 18. Qxb5 Re7) 18. Bxd7 $18 {[%emt 0:06:12]} Qxd7 {[%emt 0:00:17]} 19. Ne6 {[%emt 0:02:21]} Qc8 {[%emt 0:06:50]} 20. Kd2 {[%emt 0:03:18]} c6 {[%emt 0:06:22]} 21. Rc2 {[%emt 0:03:54]} g5 $2 {[%emt 0:13:01]} (21... a5 $16 22. Nf4 Kg7) 22. Qa3 {[%emt 0:12:19]} (22. hxg5 $18 {is the precise move to win.} hxg5 23. Qb4 Rxe6 24. dxe6+ Kxe6 25. Rh7) 22... gxh4 $16 {[%emt 0:05:03]} 23. gxh4 {[%emt 0:03:57]} (23. Qxd6 Rd7 24. Qb4 Qg8 $11) 23... a6 {[%emt 0:00:04]} (23... Rxe6 {is a better defense.} 24. dxe6+ Kxe6) 24. Nf4 {[%emt 0:04:14]} Qd7 {[%emt 0:05:07]} 25. Kc1 {[%emt 0:03:42]} Ree8 {[%emt 0:00:57]} (25... c5 $142 26. dxc5 Qb5) 26. dxc6 $18 {[%emt 0:03:07]} bxc6 {[%emt 0:00:06]} 27. Qxa6 {[%emt 0:00:07]} Rec8 {[%emt 0:00:13]} 28. Qe2 {[%emt 0:00:55]} Rg8 {[%emt 0:05:49]} 29. Qc4+ {[%emt 0:02:50]} Ke7 {[%emt 0:01:09]} 30. Qxc6 {[%emt 0:01:57]} Qxc6 {[%emt 0:00:04]} 31. Rxc6 {[%emt 0:00:07]} Kd7 {[%emt 0:00:02]} 32. Rc2 {[%emt 0:02:58]} Rg4 {[%emt 0:00:13]} 33. Nd5 {[%emt 0:01:56]} Bxh4 {[%emt 0:00:52]} 34. Rc7+ {[%emt 0:01:03]} Ke6 {[%emt 0:01:18]} 35. Nf4+ {[%emt 0:00:08]} Rxf4 {[%emt 0:02:15]} 36. exf4 {[%emt 0:00:07]} Bxf2 {[%emt 0:00:03]} 37. Rxh6+ {[%emt 0:00:57]} Kd5 {[%emt 0:00:06] [#]} 38. Rf7 $1 {[%emt 0:04:34]} e3 {[%emt 0:00:37]} 39. Rxf5+ {[%emt 0:02:32]} (39. Re7 $18) 39... Ke4 $1 $14 {[%emt 0:00:05]} 40. Rff6 {[%emt 0:06:40]} (40. Ra5 $1 $14) 40... Kd3 $11 {[%emt 0:00:50]} 41. Re6 {[%emt 0:33:40]} (41. Rxd6 e2 42. Rde6 (42. Rh3+ $2 Be3+ 43. Rxe3+ Kxe3 $19) 42... Be3+ (42... e1=Q+ 43. Rxe1 Bxe1 44. Rh3+ Kxd4 45. Rh5 $15) 43. Rxe3+ Kxe3 $19) 41... Rc8+ {[%emt 0:03:51]} 42. Kb1 {[%emt 0:00:00]} d5 {[%emt 0:03:55]} 43. Re5 {[%emt 0:00:00]} e2 {[%emt 0:03:33]} 44. Rh1 {[%emt 0:00:00]} (44. Rxe2 $15 Kxe2 45. Rd6) 44... Rg8 $17 {[%emt 0:08:37]} 45. Rg5 {[%emt 0:00:00]} (45. Rxd5 $2 Rg1+ (45... e1=Q+ $2 46. Rxe1 Bxe1 47. a4 $19) 46. Rxg1 Bxg1 $19) (45. a4 $17) 45... Rf8 $2 {[%emt 0:06:43]} (45... e1=Q+ 46. Rxe1 Rd8 (46... Rxg5 $2 47. fxg5 Bxe1 48. g6 $18) 47. Rd1+ Ke2 48. Rh1 $18) ({But not} 45... Rxg5 $2 46. fxg5 Bxd4 47. a4 $18) ({Black should play} 45... Rd8 $19 46. a4 e1=Q+ (46... e1=B 47. Rg6 $14) (46... e1=R+ $2 47. Rxe1 Bxe1 48. Rh5 $19) 47. Rxe1 Bxe1) 46. Rxd5 $11 {[%emt 0:00:00]} Rxf4 {[%emt 0:00:17]} (46... e1=Q+ 47. Rxe1 Bxe1 48. f5 $11) (46... Rh8 $5 47. Rc1 $8 e1=Q 48. Rxe1 Bxe1 $11) 47. Rc5 {[%emt 0:01:49]} Be3 {[%emt 0:07:54]} (47... e1=Q+ $2 48. Rxe1 Bxe1 49. d5 $19) 48. Rc3+ {[%emt 0:00:10]} Kd2 {[%emt 0:01:21]} (48... Ke4 $5 49. Kc2 $8 Rf1 50. Rh4+ Bf4 $19) 49. Rc2+ {[%emt 0:00:55]} Kd3 {[%emt 0:00:05]} 50. Rc3+ {[%emt 0:03:14]} Kd2 {[%emt 0:00:18]} (50... Ke4 $5 51. Kc2 $8 Rf1 52. Rh4+ Bf4 $19) 1/2-1/2

[Event "British Championship 2024"]
[Site "Hull"]
[Date "2024.07.31"]
[Round "2.15"]
[White "Sanger, Jake M"]
[Black "Lutsko, Artem"]
[Result "0-1"]
[Annotator "RC"]
[ECO "D55"]
[WhiteElo "2026"]
[BlackElo "2414"]
[PlyCount "104"]
[EventDate "2024.07.31"]
[EventCountry "GBR"]
[SourceTitle "playchess.com"]
[Source "ChessBase"]
[SourceQuality "1"]
[TimeControl "40/5400+30:1800+30"]

1. d4 {[%emt 0:00:02]} Nf6 {[%emt 0:00:04]} 2. c4 {[%emt 0:00:03]} e6 {[%emt 0:00:04]} 3. Nf3 {[%emt 0:00:09]} d5 {[%emt 0:00:21]} 4. Nc3 {[%emt 0:00:16]} Be7 {[%emt 0:00:27]} 5. Bg5 {[%emt 0:01:23]} h6 {[%emt 0:01:32]} 6. Bxf6 {[%emt 0:00:15]} Bxf6 {[%emt 0:00:06]} 7. Rc1 {[%emt 0:01:27]} O-O {[%emt 0:04:53]} 8. e3 {[%emt 0:00:07]} c6 {[%emt 0:11:07]} 9. Bd3 {[%emt 0:00:21]} Nd7 {[%emt 0:09:18]} 10. O-O {[%emt 0:01:16]} dxc4 {[%emt 0:01:26]} 11. Bxc4 {[%emt 0:00:07]} e5 {[%emt 0:00:08]} 12. Ne4 {[%emt 0:00:39]} exd4 {[%emt 0:00:06]} 13. Nxf6+ {[%emt 0:00:08]} Nxf6 {[%emt 0:07:48]} 14. Qxd4 {[%emt 0:03:34]} Qxd4 {[%emt 0:02:26]} 15. Nxd4 {[%emt 0:00:26]} Bd7 {[%emt 0:06:14]} 16. Rfd1 {[%emt 0:08:17]} Rfd8 {[%emt 0:00:14]} 17. Nf3 {[%emt 0:02:33]} Kf8 {[%emt 0:08:56]} 18. Ne5 {[%emt 0:07:23]} Be8 {[%emt 0:00:03]} 19. Kf1 {[%emt 0:06:11]} c5 {[%emt 0:02:27]} 20. Be2 {[%emt 0:02:43]} Rxd1+ {[%emt 0:03:27]} 21. Bxd1 {[%emt 0:04:20]} Rc8 {[%emt 0:02:13]} 22. Bf3 {[%emt 0:04:03]} b5 {[%emt 0:03:01]} 23. Ke1 {[%emt 0:08:19]} Ke7 {[%emt 0:00:53]} 24. b3 {[%emt 0:07:37]} Kd6 {[%emt 0:18:29]} 25. Nd3 {[%emt 0:01:16]} c4 {[%emt 0:00:03]} 26. bxc4 {[%emt 0:13:28]} Rxc4 {[%emt 0:00:08]} 27. Rd1 {[%emt 0:04:58]} Kc7 {[%emt 0:03:13]} 28. Kd2 {[%emt 0:05:22]} Kb6 {[%emt 0:03:45]} 29. Rc1 {[%emt 0:03:48]} Rxc1 {[%emt 0:00:28]} 30. Kxc1 {[%emt 0:00:41]} Nd7 {[%emt 0:00:25]} 31. Kd2 {[%emt 0:05:13]} a5 {[%emt 0:00:40]} 32. a3 {[%emt 0:01:34]} Nc5 {[%emt 0:00:47]} 33. Nxc5 {[%emt 0:02:40]} Kxc5 {[%emt 0:00:02]} 34. Bh5 {[%emt 0:01:52]} b4 {[%emt 0:01:22]} 35. axb4+ {[%emt 0:01:16]} Kxb4 {[%emt 0:00:04]} 36. Kc2 {[%emt 0:00:37]} Ba4+ {[%emt 0:01:26]} 37. Kb2 {[%emt 0:00:41]} Bb3 {[%emt 0:00:07]} 38. h4 {[%emt 0:01:41]} a4 {[%emt 0:00:39]} 39. Bf3 {[%emt 0:01:28]} a3+ {[%emt 0:00:15]} 40. Ka1 {[%emt 0:00:22]} Kc3 {[%emt 0:01:49]} 41. Bc6 {[%emt 0:31:32]} Kd3 {[%emt 0:36:48]} 42. g4 {[%emt 0:00:00]} f6 {[%emt 0:00:00]} 43. Bf3 {[%emt 0:00:15]} Kd2 {[%emt 0:00:00]} 44. g5 {[%emt 0:01:13]} Ke1 {[%emt 0:00:00]} 45. gxf6 {[%emt 0:00:30]} gxf6 {[%emt 0:00:00]} 46. Bc6 {[%emt 0:00:25]} Kxf2 {[%emt 0:00:00]} 47. e4 {[%emt 0:00:03]} Ke3 {[%emt 0:00:00]} 48. Bd5 {[%emt 0:00:09]} Bc2 {[%emt 0:00:00]} 49. Ka2 {[%emt 0:00:22]} Bxe4 {[%emt 0:00:00]} 50. Bf7 {[%emt 0:00:44]} f5 {[%emt 0:00:00]} 51. Kxa3 {[%emt 0:00:13]} f4 {[%emt 0:00:00]} 52. Kb3 {[%emt 0:00:09]} f3 {[%emt 0:00:00]} 0-1